[Event "12th Chennai Open 2020"]
[Site "Chennai"]
[Date "2020.01.23"]
[Round "8.18"]
[White "Hesham, Abdelrahman"]
[Black "Pranav Vijay"]
[Result "0-1"]
[ECO "E15"]
[WhiteElo "2429"]
[BlackElo "2265"]
[Annotator "ChessBase"]
[PlyCount "111"]
[EventDate "2020.01.19"]
[EventType "swiss"]
[EventCountry "IND"]
[SourceTitle "playchess.com"]
[Source "ChessBase"]
[SourceQuality "1"]
[TimeControl "5400+30"]

1. d4 {[%emt 0:03:38]} Nf6 {[%emt 0:00:00]} 2. c4 {[%emt 0:00:05]} e6 {[%emt 0:00:00]} 3. Nf3 {[%emt 0:00:06]} b6 {[%emt 0:00:00]} 4. g3 {[%emt 0:00:30]} Ba6 {[%emt 0:00:04]} 5. b3 {[%emt 0:00:15]} d5 {[%emt 0:00:26]} 6. Bg2 {[%emt 0:02:27]} dxc4 {[%emt 0:00:55]} 7. Ne5 {[%emt 0:01:24]} Bb4+ {[%emt 0:00:09]} 8. Kf1 {[%emt 0:02:50]} Bd6 {[%emt 0:00:31]} 9. Nxc4 {[%emt 0:03:19]} Nd5 {[%emt 0:01:16]} 10. Bf3 {[%emt 0:07:20]} Be7 {[%emt 0:13:30]} 11. Kg2 {[%emt 0:00:36]} O-O {[%emt 0:01:22]} 12. e4 {[%emt 0:00:27]} Nf6 {[%emt 0:00:11]} 13. Nc3 {[%emt 0:00:18]} c6 {[%emt 0:06:32]} 14. Bf4 {[%emt 0:14:17]} Nbd7 {[%emt 1:12:04]} 15. Rc1 {[%emt 0:03:08]} Rc8 {[%emt 0:00:00]} 16. Nd6 {[%emt 0:03:21]} Ra8 {[%emt 0:00:00]} 17. h4 {[%emt 0:08:24]} Ne8 {[%emt 0:00:00]} 18. Nc4 {[%emt 0:03:24]} Rc8 {[%emt 0:00:00]} 19. e5 {[%emt 0:11:16]} Bb7 {[%emt 0:00:00]} 20. Ne4 {[%emt 0:01:17]} Rb8 {[%emt 0:00:00]} 21. Qc2 {[%emt 0:03:32]} Nc7 {[%emt 0:00:00]} 22. Ng5 {[%emt 0:00:31]} g6 {[%emt 0:00:00]} 23. Nxh7 {[%emt 0:07:11]} Kxh7 {[%emt 0:00:00]} 24. h5 {[%emt 0:00:02]} Kg7 {[%emt 0:00:00]} 25. hxg6 {[%emt 0:04:42]} fxg6 {[%emt 0:00:00]} 26. Rh6 {[%emt 0:02:14]} Rf5 {[%emt 0:00:00]} 27. g4 {[%emt 0:01:56]} Nf8 {[%emt 0:00:00]} 28. gxf5 {[%emt 0:01:10]} exf5 {[%emt 0:00:00]} 29. Rh2 {[%emt 0:02:37]} Nfe6 {[%emt 0:00:00]} 30. Bh6+ {[%emt 0:00:28]} Kg8 {[%emt 0:00:00]} 31. Ne3 {[%emt 0:00:37]} Nxd4 {[%emt 0:00:00]} 32. Qc4+ {[%emt 0:00:35]} Nce6 {[%emt 0:00:00]} 33. Nxf5 {[%emt 0:05:18]} b5 {[%emt 0:00:00]} 34. Nxe7+ {[%emt 0:00:56]} Qxe7 {[%emt 0:00:00]} 35. Qd3 {[%emt 0:00:20]} Nf5 {[%emt 0:00:16]} 36. Rch1 {[%emt 0:00:46]} Rd8 {[%emt 0:00:31]} 37. Qb1 {[%emt 0:03:19]} c5 {[%emt 0:01:41]} 38. Rh3 {[%emt 0:02:23]} Bxf3+ {[%emt 0:01:36]} 39. Rxf3 {[%emt 0:00:03]} Qb7 {[%emt 0:00:11]} 40. Be3 {[%emt 0:01:01]} Rf8 {[%emt 0:00:08]} 41. Qd3 {[%emt 0:01:15]} Rd8 {[%emt 0:00:50]} 42. Qb1 {[%emt 0:00:33]} Kg7 {[%emt 0:00:56]} 43. Rhh3 {[%emt 0:00:28]} Nxe3+ {[%emt 0:01:17]} 44. fxe3 {[%emt 0:00:04]} Rd2+ {[%emt 0:00:03]} 45. Kf1 {[%emt 0:01:14]} Qd5 {[%emt 0:00:22]} 46. Ke1 {[%emt 0:00:00]} Rg2 {[%emt 0:00:12]} 47. Rf2 {[%emt 0:01:08]} Ng5 {[%emt 0:00:51]} 48. Rh1 {[%emt 0:00:42]} Nf3+ {[%emt 0:01:34]} 49. Ke2 {[%emt 0:00:30]} Qd2+ {[%emt 0:01:08]} 50. Kxf3 {[%emt 0:00:03]} Qxf2+ {[%emt 0:00:04]} 51. Ke4 {[%emt 0:00:01]} Qf5+ {[%emt 0:00:04]} 52. Kd5 {[%emt 0:00:10]} Rd2+ {[%emt 0:00:02]} 53. Kxc5 {[%emt 0:01:08]} Qxe5+ {[%emt 0:00:21]} 54. Kb4 {[%emt 0:00:05]} Qd6+ {[%emt 0:00:13]} 55. Kc3 {[%emt 0:00:08]} Re2 {[%emt 0:00:10]} 56. Qa1 {[%emt 0:01:27]} 0-1